[Event "EICC 2025"]
[Site "Eforie-Nord"]
[Date "2025.03.17"]
[Round "3.36"]
[White "Hovhannisyan, Robert"]
[Black "Razafindratsima, Timothe"]
[Result "1-0"]
[Annotator "TA"]
[ECO "C48"]
[WhiteElo "2630"]
[BlackElo "2465"]
[PlyCount "107"]
[EventDate "2025.03.14"]
[EventType "swiss"]
[EventCountry "ROU"]
[SourceTitle "playchess.com"]
[Source "ChessBase"]
[SourceQuality "1"]
[TimeControl "40/5400+30:1800+30"]

{[%evp 16,107,19,12,30,27,32,-4,3,3,11,11,11,5,2,8,8,8,8,6,3,0,13,10,10,0,8,13,23,-3,27,32,43,22,49,49,81,81,71,81,81,58,29,29,174,193,191,166,157,174,163,183,205,190,244,256,277,270,327,228,304,303,289,161,165,165,182,182,253,232,214,221,229,105,308,308,595,564,487,377,683,550,1579,1725,1514,1629,1386,1023,5167,5060,4598,4614,1806,1391]} 1. e4 {[%emt 0:00:03]} e5 {[%emt 0:00:13]} 2. Nf3 {[%emt 0:00:07]} Nf6 {[%emt 0:00:11]} 3. Nc3 {[%emt 0:00:56]} Nc6 {[%emt 0:00:11]} 4. Bb5 {[%emt 0:00:44]} Nd4 {[%emt 0:01:17]} 5. Nxd4 {[%emt 0:00:28]} exd4 {[%emt 0:00:07]} 6. e5 {[%emt 0:00:02]} dxc3 {[%emt 0:00:26]} 7. exf6 {[%emt 0:00:07]} Qxf6 {[%emt 0:00:10]} 8. dxc3 {[%emt 0:00:07]} Qe5+ {[%emt 0:01:20]} 9. Be2 {[%emt 0:00:21]} Bc5 {[%emt 0:00:28] C48: Four Knights: 4 Bb5, replies other than 4...Bb4.} (9... Bd6 {simplifies} 10. Be3 O-O 11. Qd4 Qxd4 12. cxd4 b6) 10. O-O {[%emt 0:01:48]} O-O {[%emt 0:00:40]} 11. Bd3 {[%emt 0:01:42]} d5 {[%emt 0:01:42] The position is equal.} 12. Qf3 {[%emt 0:01:32]} Bd6 {[%emt 0:02:32][%csl Gd6][%cal Re5h2]} 13. g3 {[%emt 0:00:53] A sharp opening. Successful Defense White} c6 {[%emt 0:00:13]} 14. Bd2 {[%emt 0:03:54]} Qe6 {[%emt 0:01:20]} 15. Rfe1 {[%emt 0:04:14]} Qg4 {[%emt 0:03:05]} (15... Qh3 {is interesting.} 16. c4 dxc4 17. Bxc4 Be6) 16. Qxg4 {[%emt 0:01:03]} Bxg4 {[%emt 0:00:08]} 17. a4 $146 {[%emt 0:00:55]} ({Predecessor:} 17. c4 dxc4 18. Bxc4 Rfe8 19. Kg2 Bf5 20. c3 Bc5 21. Bf4 a5 22. Rad1 h6 23. h4 {½-½ Silva Filho,A (2111)-Vodicka,M (1966) RA-2012-0-00239}) 17... Rfe8 {[%emt 0:02:56]} 18. Kg2 {[%emt 0:07:13]} a6 {[%emt 0:15:52]} 19. a5 {[%emt 0:04:15]} Be6 {[%emt 0:23:19]} 20. h4 {[%emt 0:05:05]} h6 {[%emt 0:03:33]} 21. Be3 {[%emt 0:04:09]} Rac8 {[%emt 0:06:07]} 22. Bb6 {[%emt 0:07:26]} c5 {[%emt 0:07:51]} 23. Be2 {[%emt 0:06:25]} Bc7 {[%emt 0:04:11]} 24. Ba7 {[%emt 0:06:15]} Bf5 {[%emt 0:11:50]} 25. Bf3 {[%emt 0:01:18]} (25. Bxc5 Bxg3 26. Bf3 Rxe1 (26... Bxh4 27. Rxe8+ Rxe8 28. Bxd5 $11) 27. Rxe1 Rxc5 $15 (27... Bxh4 28. b4 $11)) 25... Be4 {[%emt 0:07:01]} 26. Red1 $1 {[%emt 0:08:23][%cal Be1d1,Bd1d5,Bd5c5,Bc5c7,Bc7b7][%mdl 32]} (26. Bxc5 $6 Bxg3 (26... Bxf3+ 27. Kxf3 Rxe1 28. Rxe1 $14) 27. Kxg3 Rxc5 $11) 26... Re6 {[%emt 0:00:27]} (26... Bxc2 $2 27. Rxd5 Bd8 28. Rd7 $16 (28. Bxc5 Bb3 $11) (28. Rxc5 Ra8 $18)) 27. Bxe4 {[%emt 0:10:43]} (27. Bxc5 Bxg3 28. Bxe4 dxe4 $15) 27... dxe4 {[%emt 0:00:05]} 28. Rd5 {[%emt 0:00:22]} (28. Bxc5 Bxg3 29. fxg3 Rxc5 $15) 28... e3 {[%emt 0:03:43]} 29. Rxc5 {[%emt 0:03:52]} (29. Bxc5 $6 exf2 30. Bxf2 Re2 $16) 29... Rd8 {[%emt 0:02:26] Black is now going downhill.} 30. Rxc7 $18 {[%emt 0:06:36]} e2 {[%emt 0:00:03] [#]} 31. Bd4 $1 {[%emt 0:00:31]} (31. Rxb7 $2 Rd1 $19) 31... e1=Q {[%emt 0:00:24]} 32. Rxe1 {[%emt 0:00:03]} Rxe1 {[%emt 0:00:05]} 33. Rxb7 $16 {[%emt 0:00:07][%mdl 4096] Endgame KRR-KRB} Re6 {[%emt 0:00:57]} 34. b4 {[%emt 0:04:26]} Ree8 {[%emt 0:01:29]} (34... g5 $142 35. hxg5 hxg5) 35. Kf3 $18 {[%emt 0:01:08]} Rc8 {[%emt 0:00:52]} 36. h5 {[%emt 0:04:42]} Kf8 {[%emt 0:00:40]} 37. Bc5+ {[%emt 0:02:02]} Rxc5 {[%emt 0:00:03]} 38. bxc5 {[%emt 0:00:03] KR-KR. White is 3 pawns up.} Rc8 {[%emt 0:00:05]} 39. Ke4 {[%emt 0:02:15]} (39. Rb6 $142 {and c6 should not be overlooked} Rxc5 40. Rxa6) 39... Rxc5 {[%emt 0:00:04]} 40. Kd4 {[%emt 0:01:03]} (40. Rb8+ Ke7 $11) 40... Rxa5 {[%emt 0:00:58] [#]} 41. c4 $1 {[%emt 0:31:28]} Ra2 {[%emt 0:18:55]} (41... Rxh5 42. c5 Ke8) 42. Kd5 {[%emt 0:00:00]} Rxc2 {[%emt 0:00:46]} 43. c5 {[%emt 0:00:00]} Rd2+ {[%emt 0:07:47]} 44. Kc6 {[%emt 0:00:00]} (44. Ke5 $18 {and White stays clearly on top.}) 44... Rxf2 $2 {[%emt 0:02:21]} (44... a5 $16 {was necessary.} 45. Kc7 a4) 45. Kb6 {[%emt 0:00:00]} Ke8 $2 {[%emt 0:02:55] Against c6} (45... Rb2+ 46. Kxa6 Rc2) 46. c6 {[%emt 0:00:00]} ({Weaker is} 46. Kxa6 Rf3 $16) 46... Rb2+ {[%emt 0:00:53]} 47. Kxa6 {[%emt 0:00:00]} Rc2 {[%emt 0:00:41]} (47... Ra2+ 48. Kb6 Rc2 49. Rb8+ Ke7) 48. Kb6 {[%emt 0:00:00] White is clearly winning.} Rb2+ {[%emt 0:00:36]} 49. Ka7 {[%emt 0:00:00]} Rc2 {[%emt 0:00:22]} 50. c7 {[%emt 0:00:00]} Kd7 {[%emt 0:00:37]} 51. Kb8 {[%emt 0:00:00]} Ke6 {[%emt 0:00:20]} 52. c8=Q+ {[%emt 0:00:00]} Rxc8+ {[%emt 0:00:06]} 53. Kxc8 {[%emt 0:00:00]} Kf6 {[%emt 0:01:05]} 54. Rb5 {[%emt 0:00:00] Weighted Error Value: White=0.12 (very precise) /Black=0.62  Loses game:     	---       	Black=1      Mistake:       	White=2     	Black=5      Inaccurate:     	White=3     	Black=5      OK:         	White=17    	Black=12     Best:        	White=5     	Black=2      Strong:       	White=2     	---} 1-0

[Event "EICC 2025"]
[Site "Eforie-Nord"]
[Date "2025.03.17"]
[Round "3.36"]
[White "Davtyan, Artur"]
[Black "Kalavannan, Koby"]
[Result "1-0"]
[Annotator "RC"]
[ECO "D02"]
[WhiteElo "2474"]
[BlackElo "2279"]
[PlyCount "83"]
[EventDate "2025.03.14"]
[EventType "swiss"]
[EventCountry "ROU"]
[SourceTitle "playchess.com"]
[Source "ChessBase"]
[SourceQuality "1"]
[TimeControl "40/5400+30:1800+30"]

1. d4 {[%emt 1:31:00]} d5 {[%emt 1:31:00]} 2. Nf3 {[%emt 0:00:30]} Nf6 {[%emt 0:00:30]} 3. c3 {[%emt 0:00:00]} g6 {[%emt 0:00:30]} 4. h3 {[%emt 0:01:00]} Bg7 {[%emt 0:00:30]} 5. Bf4 {[%emt 0:00:30]} Nbd7 {[%emt 0:00:30]} 6. Nbd2 {[%emt 0:00:30]} O-O {[%emt 0:00:30]} 7. e3 {[%emt 0:00:30]} c5 {[%emt 0:00:30]} 8. Be2 {[%emt 0:00:30]} b6 {[%emt 0:00:30]} 9. O-O {[%emt 0:00:30]} Bb7 {[%emt 0:00:30]} 10. a4 {[%emt 0:00:30]} Ne4 {[%emt 0:00:30]} 11. Qb3 {[%emt 0:00:30]} Nxd2 {[%emt 0:00:30]} 12. Nxd2 {[%emt 0:00:30]} e5 {[%emt 0:00:30]} 13. dxe5 {[%emt 0:00:30]} Nxe5 {[%emt 0:00:30]} 14. Nf3 {[%emt 0:00:30]} Qe7 {[%emt 0:00:30]} 15. Rfd1 {[%emt 0:00:30]} Bc6 {[%emt 0:00:00]} 16. Rd2 {[%emt 0:00:30]} Rad8 {[%emt 0:01:00]} 17. Rad1 {[%emt 0:00:00]} Rd7 {[%emt 0:00:30]} 18. Bxe5 {[%emt 0:01:00]} Bxe5 {[%emt 0:00:30]} 19. Bb5 {[%emt 0:00:30]} c4 {[%emt 0:00:30]} 20. Qc2 {[%emt 0:00:30]} Bxb5 {[%emt 0:00:30]} 21. axb5 {[%emt 0:00:30]} Rfd8 {[%emt 0:00:30]} 22. e4 {[%emt 0:00:30]} Qe6 {[%emt 0:00:30]} 23. exd5 {[%emt 0:00:30]} Rxd5 {[%emt 0:00:30]} 24. Rxd5 {[%emt 0:00:30]} Rxd5 {[%emt 0:00:30]} 25. Re1 {[%emt 0:00:30]} Qd6 {[%emt 0:00:30]} 26. Qe4 {[%emt 0:00:30]} Bf6 {[%emt 0:00:30]} 27. Qxc4 {[%emt 0:00:30]} Kg7 {[%emt 0:00:30]} 28. Qe2 {[%emt 0:00:30]} Rc5 {[%emt 0:00:30]} 29. Rd1 {[%emt 0:00:30]} Qe7 {[%emt 0:00:30]} 30. Qd3 {[%emt 0:00:30]} Qe8 {[%emt 0:00:30]} 31. Nd4 {[%emt 0:00:30]} Bxd4 {[%emt 0:00:30]} 32. Qxd4+ {[%emt 0:00:30]} Qe5 {[%emt 0:00:30]} 33. c4 {[%emt 0:00:30]} Qxd4 {[%emt 0:00:30]} 34. Rxd4 {[%emt 0:00:30]} Re5 {[%emt 0:00:30]} 35. Kf1 {[%emt 0:00:30]} Re7 {[%emt 0:00:30]} 36. b4 {[%emt 0:00:30]} Kf6 {[%emt 0:00:30]} 37. Rd6+ {[%emt 0:00:30]} Ke5 {[%emt 0:00:30]} 38. Rd5+ {[%emt 0:00:30]} Kf6 {[%emt 0:00:30]} 39. Rd4 {[%emt 0:00:30]} Re5 {[%emt 0:00:30]} 40. Rd6+ {[%emt 0:00:30]} Ke7 {[%emt 0:00:30]} 41. Rd3 {[%emt 0:30:30]} Rf5 {[%emt 0:30:30]} 42. g3 {[%emt 0:00:30]} 1-0

[Event "EICC 2025"]
[Site "Eforie-Nord"]
[Date "2025.03.17"]
[Round "3.37"]
[White "Ponomariov, Ruslan"]
[Black "Tarhan, Adar"]
[Result "1/2-1/2"]
[Annotator "TA"]
[ECO "C88"]
[WhiteElo "2628"]
[BlackElo "2460"]
[PlyCount "39"]
[EventDate "2025.03.14"]
[EventType "swiss"]
[EventCountry "ROU"]
[SourceTitle "playchess.com"]
[Source "ChessBase"]
[SourceQuality "1"]
[TimeControl "40/5400+30:1800+30"]

{[%evp 22,39,-8,-12,20,12,2,14,16,10,10,-38,-27,-30,-30,-21,-17,-21,-34,-70]} 1. e4 {[%emt 0:00:03]} e5 {[%emt 0:00:11]} 2. Nf3 {[%emt 0:00:07]} Nc6 {[%emt 0:00:09]} 3. Bb5 {[%emt 0:00:09][%cal Bf1b5,Bb5a4,Ba4b3][%mdl 32]} a6 {[%emt 0:00:09]} 4. Ba4 {[%emt 0:00:08]} Nf6 {[%emt 0:00:05]} 5. O-O {[%emt 0:00:23]} Be7 {[%emt 0:00:09]} 6. Re1 {[%emt 0:00:35]} b5 {[%emt 0:00:17]} 7. Bb3 {[%emt 0:00:08]} O-O {[%emt 0:00:42]} 8. d4 {[%emt 0:01:12]} Nxd4 {[%emt 0:06:18]} 9. Nxd4 {[%emt 0:01:06]} exd4 {[%emt 0:00:06]} 10. e5 {[%emt 0:00:12]} Ne8 {[%emt 0:00:19]} 11. Qxd4 {[%emt 0:01:13]} c5 {[%emt 0:23:42]} 12. Qe4 {[%emt 0:01:07]} Nc7 {[%emt 0:00:57] [#] C88: Closed Ruy Lopez: Anti-Marshall Systems.} 13. c4 {[%emt 0:06:15]} bxc4 {[%emt 0:00:47]} 14. Bc2 {[%emt 0:16:27][%csl Gc2][%cal Re4h7]} g6 {[%emt 0:00:24] The position is equal.} 15. Bh6 {[%emt 0:01:25]} Re8 {[%emt 0:00:28] aiming for ...d5.} 16. Nd2 {[%emt 0:08:28]} (16. Qxc4 $11 {is superior.} Rb8 17. Bb3) 16... Bf8 $15 {[%emt 0:09:33]} 17. Bxf8 {[%emt 0:03:06]} d5 {[%emt 0:00:15]} 18. Qe3 {[%emt 0:01:44]} Rxf8 {[%emt 0:00:48]} 19. Qxc5 {[%emt 0:00:05]} Ne6 $146 {[%emt 0:01:03]} (19... Rb8 20. Qa3 Nb5 21. Qe3 Qb6 22. Nf3 Bg4 23. a4 Qxe3 24. Rxe3 Nc7 25. b3 Bxf3 26. Rxf3 {½-½ Mastrovasilis,D (2599)-Saraci,N (2495) Olympiad-44 Chennai 2022 (2.1)}) 20. Qa3 {[%emt 0:11:17] Weighted Error Value: White=0.07 (flawless) /Black=0.05 (flawless)   Mistake:       	White=1     	---        Inaccurate:     	White=1     	---        OK:         	White=4     	Black=5      Best:        	White=1     	Black=2} 1/2-1/2

[Event "EICC 2025"]
[Site "Eforie-Nord"]
[Date "2025.03.17"]
[Round "3.37"]
[White "Csonka, Balazs"]
[Black "Ciorgovean, Iustin"]
[Result "1/2-1/2"]
[Annotator "RC"]
[ECO "D06"]
[WhiteElo "2473"]
[BlackElo "2267"]
[PlyCount "56"]
[EventDate "2025.03.14"]
[EventType "swiss"]
[EventCountry "ROU"]
[SourceTitle "playchess.com"]
[Source "ChessBase"]
[SourceQuality "1"]
[TimeControl "40/5400+30:1800+30"]

1. d4 {[%emt 0:00:04]} d5 {[%emt 0:00:03]} 2. c4 {[%emt 0:00:32]} c5 {[%emt 0:00:04]} 3. cxd5 {[%emt 0:00:40]} Nf6 {[%emt 0:00:06]} 4. e4 {[%emt 0:04:10]} Nxe4 {[%emt 0:00:27]} 5. dxc5 {[%emt 0:00:13]} Qa5+ {[%emt 0:00:19]} 6. Bd2 {[%emt 0:00:27]} Nxd2 {[%emt 0:00:15]} 7. Qxd2 {[%emt 0:00:06]} Qxd2+ {[%emt 0:00:15]} 8. Nxd2 {[%emt 0:00:38]} g6 {[%emt 0:00:43]} 9. Rc1 {[%emt 0:27:00]} Bh6 {[%emt 0:00:16]} 10. Bb5+ {[%emt 0:04:45]} Nd7 {[%emt 0:00:38]} 11. c6 {[%emt 0:06:57]} bxc6 {[%emt 0:00:32]} 12. dxc6 {[%emt 0:00:38]} Nb6 {[%emt 0:00:41]} 13. c7+ {[%emt 0:03:16]} Bd7 {[%emt 0:01:20]} 14. Ba6 {[%emt 0:00:17]} Bc8 {[%emt 0:00:38]} 15. Bb5+ {[%emt 0:05:02]} Bd7 {[%emt 0:00:15]} 16. Ba6 {[%emt 0:00:10]} Bc8 {[%emt 0:00:29]} 17. Be2 {[%emt 0:00:03]} Bb7 {[%emt 0:03:20]} 18. Bf3 {[%emt 0:00:20]} Bxf3 {[%emt 0:01:04]} 19. Ngxf3 {[%emt 0:00:07]} Rc8 {[%emt 0:08:08]} 20. g3 {[%emt 0:13:09]} Bg7 {[%emt 0:24:38]} 21. Nc4 {[%emt 0:12:20]} Nd5 {[%emt 0:11:57]} 22. O-O {[%emt 0:04:07]} Rxc7 {[%emt 0:03:59]} 23. Rfd1 {[%emt 0:04:07]} Nc3 {[%emt 0:00:12]} 24. bxc3 {[%emt 0:01:57]} Rxc4 {[%emt 0:15:25]} 25. Rd5 {[%emt 0:00:20]} Rc7 {[%emt 0:02:04]} 26. c4 {[%emt 0:01:17]} O-O {[%emt 0:01:17]} 27. Ra5 {[%emt 0:01:32]} Rfc8 {[%emt 0:00:57]} 28. Ra4 {[%emt 0:02:26]} h5 {[%emt 0:01:57]} 1/2-1/2

[Event "EICC 2025"]
[Site "Eforie-Nord"]
[Date "2025.03.17"]
[Round "3.38"]
[White "Volokitin, Andrei"]
[Black "Kilic, Eray"]
[Result "1/2-1/2"]
[Annotator "TA"]
[ECO "B90"]
[WhiteElo "2628"]
[BlackElo "2459"]
[PlyCount "120"]
[EventDate "2025.03.14"]
[EventType "swiss"]
[EventCountry "ROU"]
[SourceTitle "playchess.com"]
[Source "ChessBase"]
[SourceQuality "1"]
[TimeControl "40/5400+30:1800+30"]

{[%evp 15,120,18,27,28,34,21,26,32,39,16,18,8,15,6,10,5,10,16,8,10,5,10,23,3,6,5,12,20,23,12,14,6,62,25,31,32,27,19,36,0,0,12,0,0,8,6,24,0,0,0,0,0,0,0,0,0,0,0,0,0,0,0,0,0,0,0,0,0,0,0,0,0,0,0,0,0,0,0,0,0,0,0,0,0,0,0,0,0,0,0,0,0,0,0,0,0,0,0,0,0,0,0,0,0,0,0,0]} 1. e4 {[%emt 0:00:05]} c5 {[%emt 0:00:06]} 2. Nf3 {[%emt 0:00:07]} d6 {[%emt 0:00:03]} 3. Nc3 {[%emt 0:00:19]} Nf6 {[%emt 0:00:45]} 4. d4 {[%emt 0:00:34]} cxd4 {[%emt 0:00:05]} 5. Nxd4 {[%emt 0:00:04]} a6 {[%emt 0:00:04]} 6. Be3 {[%emt 0:01:40]} e5 {[%emt 0:01:42]} 7. Nb3 {[%emt 0:00:12]} Be6 {[%emt 0:00:03]} 8. f3 {[%emt 0:01:09]} h5 {[%emt 0:02:22]} 9. Nd5 {[%emt 0:00:25] B90: Sicilian Najdorf: Unusual White 6th moves, 6 Be3 Ng4 and 6 Be3 e5.} Bxd5 {[%emt 0:00:06]} 10. exd5 {[%emt 0:00:05]} Nbd7 {[%emt 0:00:10]} 11. Qd2 {[%emt 0:00:30] White has an edge.} g6 {[%emt 0:00:04]} 12. O-O-O {[%emt 0:01:58]} Nb6 {[%emt 0:00:16]} 13. Kb1 {[%emt 0:00:25]} Nfxd5 {[%emt 0:00:07]} 14. Bg5 {[%emt 0:11:13] White sacrificed a pawn} Be7 {[%emt 0:00:14]} 15. Bxe7 {[%emt 0:00:07]} Qxe7 {[%emt 0:00:04]} 16. c4 {[%emt 0:01:16] 16.c4 has lost popularity.} Nf6 {[%emt 0:02:08]} 17. Qxd6 {[%emt 0:00:07]} Qxd6 {[%emt 0:01:43] Successful Defense Black} 18. Rxd6 {[%emt 0:00:02]} Nbd7 {[%emt 0:00:06]} 19. Rd2 {[%emt 0:03:37]} Rc8 {[%emt 0:04:52]} 20. Bd3 {[%emt 0:05:11][%cal Oc4c5]} O-O $146 {[%emt 0:06:04]} (20... Rc7 21. Re1 Kf8 22. Nc1 Kg7 23. b3 Re8 24. Rde2 Rd8 25. Bc2 b5 26. cxb5 axb5 {½-½ Perry,D (2495)-Pappier,C (2501) ICCF GMN/A/08 email 2022}) 21. Rc1 {[%emt 0:19:18]} Rfd8 {[%emt 0:09:17]} 22. c5 {[%emt 0:11:38][%cal Oc5c6]} Nb8 {[%emt 0:13:03]} 23. Na5 {[%emt 0:19:19]} Rc7 {[%emt 0:09:25]} ({Black should play} 23... e4 $1 $11 24. fxe4 Nxe4) 24. Rdd1 {[%emt 0:06:58] White is more active.} Nc6 {[%emt 0:02:18]} 25. Nxc6 {[%emt 0:00:40]} Rxc6 {[%emt 0:00:07]} 26. b4 {[%emt 0:00:31]} Nd5 {[%emt 0:10:15]} 27. Be4 {[%emt 0:06:22]} Nc3+ {[%emt 0:01:19]} 28. Rxc3 {[%emt 0:00:19]} Rxd1+ $11 {[%emt 0:00:04][%mdl 4096] Endgame KRR-KRB} 29. Kc2 {[%emt 0:00:03][%cal Oe4c6] [#]} Rd4 {[%emt 0:02:02]} 30. Bxc6 {[%emt 0:00:20]} bxc6 {[%emt 0:00:04] KR-KR} 31. Kb3 {[%emt 0:01:28]} Kf8 $1 {[%emt 0:02:15] The position is equal.} 32. Ka4 {[%emt 0:02:41]} Ke7 {[%emt 0:00:33]} 33. Ka5 {[%emt 0:00:08][%cal Oc3e3]} Kd7 $1 {[%emt 0:00:29]} 34. a4 {[%emt 0:07:10][%cal Oh2h3]} Kc7 {[%emt 0:02:16]} 35. g3 {[%emt 0:00:53]} g5 {[%emt 0:05:48]} 36. Rb3 {[%emt 0:00:25]} Kb7 {[%emt 0:00:42]} 37. Re3 {[%emt 0:00:06]} f6 {[%emt 0:00:35]} 38. Re2 {[%emt 0:01:18]} h4 {[%emt 0:05:52]} 39. f4 {[%emt 0:00:30]} gxf4 {[%emt 0:04:08]} 40. gxf4 {[%emt 0:00:06]} Rxf4 {[%emt 0:07:25]} 41. Rg2 {[%emt 0:30:15] [#]} Rd4 {[%emt 0:35:23]} 42. Rg7+ {[%emt 0:00:43]} Kc8 $1 {[%emt 0:00:25]} 43. Rf7 {[%emt 0:00:00]} e4 $1 {[%emt 0:00:00]} 44. Kb6 {[%emt 0:00:00]} Kd8 {[%emt 0:00:00]} 45. Kxc6 {[%emt 0:00:00]} e3 {[%emt 0:00:00]} 46. Rxf6 {[%emt 0:00:00]} Re4 {[%emt 0:00:00][%cal Oe3e2] ...e2! would now be deadly.} 47. Rf8+ {[%emt 0:01:53]} Ke7 {[%emt 0:00:00]} 48. Rf1 {[%emt 0:00:03] Threatens to win with b5.} Rxb4 {[%emt 0:00:00]} 49. Re1 {[%emt 0:00:11]} Rb3 {[%emt 0:00:44]} 50. Kc7 {[%emt 0:00:51]} a5 {[%emt 0:01:20]} 51. c6 {[%emt 0:00:14]} h3 {[%emt 0:01:07]} 52. Kc8 {[%emt 0:00:47]} Rc3 {[%emt 0:01:38]} 53. c7 {[%emt 0:00:05]} Rb3 {[%emt 0:00:08]} 54. Re2 {[%emt 0:00:55]} Rc3 {[%emt 0:00:02]} 55. Kb7 {[%emt 0:01:57]} (55. Kb8 $5 Rb3+ $8 (55... Kd7 $2 56. Rxe3 Rxe3 57. c8=Q+ $18) 56. Kc8 $11) 55... Rb3+ {[%emt 0:00:51]} (55... Kd7 $6 56. Rxe3 Rxc7+ 57. Kb6 $16) 56. Kc6 {[%emt 0:00:29]} Rc3+ {[%emt 0:00:06]} 57. Kb7 {[%emt 0:00:31]} Rb3+ {[%emt 0:00:12]} ({Inferior is} 57... Kd7 58. Rxe3 Rxc7+ 59. Kb6 $16) 58. Kc8 {[%emt 0:00:06]} (58. Ka6 $5 Kd7 $8 59. Rc2 $14 (59. Kxa5 $2 {is the wrong capture.} Kxc7 60. Rc2+ Kd6 $19)) 58... Rc3 {[%emt 0:00:23]} 59. Re1 {[%emt 0:00:25]} Rb3 {[%emt 0:00:54]} 60. Re2 {[%emt 0:00:04]} Rc3 {[%emt 0:08:16] Weighted Error Value: White=0.03 (flawless) /Black=0.02 (flawless)   Mistake:       	---       	Black=1      Inaccurate:     	White=1     	---        OK:         	White=20    	Black=28     Best:        	White=4     	Black=7      Strong:       	---       	Black=4} 1/2-1/2

[Event "EICC 2025"]
[Site "Eforie-Nord"]
[Date "2025.03.17"]
[Round "3.38"]
[White "Stoyanov, Tsvetan"]
[Black "Manea, Alexandru"]
[Result "1-0"]
[Annotator "RC"]
[ECO "A17"]
[WhiteElo "2469"]
[BlackElo "2260"]
[PlyCount "77"]
[EventDate "2025.03.14"]
[EventType "swiss"]
[EventCountry "ROU"]
[SourceTitle "playchess.com"]
[Source "ChessBase"]
[SourceQuality "1"]
[TimeControl "40/5400+30:1800+30"]

1. c4 {[%emt 0:00:05]} e6 {[%emt 0:00:40]} 2. Nf3 {[%emt 0:01:01]} d5 {[%emt 0:01:28]} 3. e3 {[%emt 0:00:05]} Nf6 {[%emt 0:00:07]} 4. Nc3 {[%emt 0:00:04]} b6 {[%emt 0:00:05]} 5. cxd5 {[%emt 0:03:43]} exd5 {[%emt 0:00:11]} 6. b4 {[%emt 0:00:04]} a6 {[%emt 0:00:17]} 7. Bb2 {[%emt 0:15:31]} Bd6 {[%emt 0:01:47]} 8. Qa4+ {[%emt 0:05:26]} c6 {[%emt 0:22:31]} 9. b5 {[%emt 0:00:38]} Bb7 {[%emt 0:03:48]} 10. bxc6 {[%emt 0:00:22]} Nxc6 {[%emt 0:00:21]} 11. Ne2 {[%emt 0:16:22]} O-O {[%emt 0:04:09]} 12. Ned4 {[%emt 0:03:09]} Nxd4 {[%emt 0:07:16]} 13. Bxd4 {[%emt 0:00:28]} Ne4 {[%emt 0:03:00]} 14. Qc2 {[%emt 0:01:33]} b5 {[%emt 0:03:24]} 15. Qb2 {[%emt 0:03:59]} f6 {[%emt 0:02:33]} 16. a4 {[%emt 0:00:09]} b4 {[%emt 0:04:45]} 17. a5 {[%emt 0:00:03]} g5 {[%emt 0:15:30]} 18. h3 {[%emt 0:05:29]} Qe7 {[%emt 0:00:22]} 19. Bd3 {[%emt 0:18:57]} Rae8 {[%emt 0:02:02]} 20. Rg1 {[%emt 0:14:02]} f5 {[%emt 0:08:46]} 21. g3 {[%emt 0:00:01]} g4 {[%emt 0:00:40]} 22. Nh2 {[%emt 0:00:13]} h5 {[%emt 0:08:17]} 23. Be2 {[%emt 0:03:29]} Rf7 {[%emt 0:00:15]} 24. Nf1 {[%emt 0:04:17]} Ng5 {[%emt 0:01:20]} 25. hxg4 {[%emt 0:00:52]} fxg4 {[%emt 0:04:44]} 26. Rh1 {[%emt 0:00:05]} Rh7 {[%emt 0:03:25]} 27. Bf6 {[%emt 0:01:21]} Qe4 {[%emt 0:01:28]} 28. Bxg5 {[%emt 0:00:02]} Qxh1 {[%emt 0:00:02]} 29. Qf6 {[%emt 0:00:03]} Rg7 {[%emt 0:00:59]} 30. Qxd6 {[%emt 0:00:47]} Rxg5 {[%emt 0:00:02]} 31. Qd7 {[%emt 0:00:14]} Rf8 {[%emt 0:01:09]} 32. Qxb7 {[%emt 0:00:02]} Qg2 {[%emt 0:00:06]} 33. O-O-O {[%emt 0:01:50]} Qe4 {[%emt 0:00:45]} 34. Kb2 {[%emt 0:02:00]} Rxf2 {[%emt 0:00:15]} 35. Qxa6 {[%emt 0:00:22]} d4 {[%emt 0:00:29]} 36. Rc1 {[%emt 0:01:02]} dxe3 {[%emt 0:00:59]} 37. Rc8+ {[%emt 0:00:26]} Rf8 {[%emt 0:00:26]} 38. Rxf8+ {[%emt 0:00:08]} Kxf8 {[%emt 0:00:01]} 39. Qf6+ {[%emt 0:00:01]} 1-0